{"text_format":"1","workbook":"xlsx","n_sheets":7,"sheets":["UYARI","Sayfa1","BİLGİ","CALIŞMAÇİZELGESİ","pusula","YOLLUK","AVANS"],"not_rendered":{"charts":0,"images":10,"macros":1,"external_links":0,"defined_names":14,"comments":0,"pivot_tables":0},"unopened":[],"bounds":{"document_bytes":16777216,"sheet_cells":100000,"rows_first":2000,"rows_last":500,"rows_between":2000,"halvings":0,"cell_chars":16384,"cell_head_chars":4096},"cells_cut":0,"cells_raw":0,"read":"whole","date_system":"1900"}

{"sheet":"UYARI","index":0,"n_rows":1,"n_cols":11,"rows_kept":1,"cut":false,"hidden":true,"merged":[[0,10,23,20]]}
["AAAAAAAAAAA ",null,null,null,null,null,null,null,null,null,"PROGRAMIN ÇALIŞABİLMESİ İÇİN LÜTFEN MAKRO GÜVENLİK AYARLARINI DÜZENLEYİNİZ VEYA UYARIYI ONAYLAYINIZ."]

{"sheet":"Sayfa1","index":1,"n_rows":0,"n_cols":0,"rows_kept":0,"cut":false,"hidden":false,"merged":[]}

{"sheet":"BİLGİ","index":2,"n_rows":15,"n_cols":2,"rows_kept":15,"cut":false,"hidden":false,"merged":[]}
["Tc Kimlik No"]
["Müfettişin Adı"]
["Ünvanı","Eğitim Müfettişi"]
["Koordinatör","Turgut ÇOLAK"]
["İlgili Koordinatör Yard.","Leyla SERBES"]
["Grup Sorumlusu"]
["Müfettiş Yevmiye Miktarı",418.5]
["Memur Yevmiye Miktarı",420]
["Derece Kademe Ek Gösterge","1/4 4200"]
["Banka Adı Şubesi","Halkbank Ankara Bahçelievler Şubesi"]
["İban No"]
["İlgili Yıl",2024]
["İlgili Ay","Mart"]
["Hazırlandığı Tarih","2024-04-01"]
["Not: Sayfalarda hata olması durumunda gözden geçir sekmesinden sayfa korumayı kaldır işaretlenip düzeltme yapılabilir."]

{"sheet":"CALIŞMAÇİZELGESİ","index":3,"n_rows":43,"n_cols":16,"rows_kept":43,"cut":false,"hidden":true,"merged":[[39,0,39,2],[41,0,41,2],[42,0,42,2],[37,0,37,4],[0,0,0,4],[1,0,1,4],[2,0,2,4],[3,0,3,4],[4,0,4,4],[38,0,38,2]]}
["T.C.",null,null,null,null,null,null,null,null,null,"OCAK",2015,{"$f":"IF(BİLGİ!B13=\"\",\"OCAK\",BİLGİ!B13)","v":"Mart"},{"$f":"LOOKUP(M1,O1:O12,P1:P12)","v":3},"AĞUSTOS",8]
["ANKARA VALİLİĞİ",null,null,null,null,null,null,null,null,null,"ŞUBAT",2016,{"$f":"IF(BİLGİ!B12=\"\",2015,BİLGİ!B12)","v":2024},null,"ARALIK",12]
["İl Millî Eğitim Müdürlüğü",null,null,null,null,null,null,null,null,null,"MART",2017,null,null,"EKİM",10]
["Eğitim Müfettişleri Başkanlığı",null,null,null,null,null,null,null,null,null,"NİSAN",2018,null,null,"EYLÜL",9]
[null,null,null,null,null,null,null,null,null,null,"MAYIS",2019,null,null,"HAZİRAN",6]
["Eğitim Müfettişleri Başkanlığı","Tarih","Gün","Nereden Nereye Gidildiği","Yapılan Çalışmalar","Harcırah Talebi","Yevmiye Cinsi",null,null,null,"HAZİRAN",2020,null,null,"KASIM",11]
[1,{"$f":"DATE(M2,N1,1)","v":"2024-03-01"},{"$f":"WEEKDAY(B7)","v":"1900-01-06"},null,null,null,null,null,null,null,"TEMMUZ",2021,null,null,"MART",3]
[{"$f":"A7+1","v":2},{"$f":"B7+1","v":"2024-03-02"},{"$f":"WEEKDAY(B8)","v":"1900-01-07"},null,null,null,null,null,null,null,"AĞUSTOS",2022,null,null,"MAYIS",5]
[{"$f":"A8+1","v":3},{"$f":"B8+1","v":"2024-03-03"},"1900-01-01",null,null,null,null,null,null,null,"EYLÜL",2023,null,null,"NİSAN",4]
[4,"2024-03-04","1900-01-02",null,null,null,null,null,null,null,"EKİM",2024,null,null,"OCAK",1]
[5,"2024-03-05","1900-01-03",null,null,null,null,null,null,null,"KASIM",2025,null,null,"ŞUBAT",2]
[6,"2024-03-06","1900-01-04",null,null,null,null,null,null,null,"ARALIK",2026,null,null,"TEMMUZ",7]
[7,"2024-03-07","1900-01-05"]
[8,"2024-03-08","1900-01-06",null,null,null,null,null,null,null,{"$f":"IF(BİLGİ!B1=\"\",\"\",BİLGİ!B1)","v":""},null,null,null,"Denetim"]
[9,"2024-03-09","1900-01-07",null,null,null,null,null,null,null,{"$f":"IF(BİLGİ!B2=\"\",\"\",BİLGİ!B2)","v":""},null,null,null,"Memur"]
[10,{"$f":"B15+1","v":"2024-03-10"},"1900-01-01",null,null,null,null,null,null,null,{"$f":"IF(BİLGİ!B3=\"\",\"\",BİLGİ!B3)","v":"Eğitim Müfettişi"}]
[11,"2024-03-11","1900-01-02",null,null,null,null,null,null,null,{"$f":"IF(BİLGİ!B4=\"\",\"\",BİLGİ!B4)","v":"Turgut ÇOLAK"}]
[12,"2024-03-12","1900-01-03",null,null,null,null,null,null,null,{"$f":"IF(BİLGİ!B5=\"\",\"\",BİLGİ!B5)","v":"Leyla SERBES"},null,null,null,"1/3gün"]
[13,"2024-03-13","1900-01-04",null,null,null,null,null,null,null,{"$f":"IF(BİLGİ!B7=\"\",38.7,BİLGİ!B7)","v":418.5},null,null,null,"2/3gün"]
[14,"2024-03-14","1900-01-05",null,null,null,null,null,null,null,{"$f":"IF(BİLGİ!B9=\"\",\"\",BİLGİ!B9)","v":"1/4 4200"},null,null,null,"1gün"]
[15,"2024-03-15","1900-01-06",null,null,null,null,null,null,null,{"$f":"IF(BİLGİ!B10=\"\",\"\",BİLGİ!B10)","v":"Halkbank Ankara Bahçelievler Şubesi"}]
[16,"2024-03-16","1900-01-07",null,null,null,null,null,null,null,{"$f":"IF(BİLGİ!B11=\"\",\"\",BİLGİ!B11)","v":""}]
[17,"2024-03-17","1900-01-01",null,null,null,null,null,null,null,{"$f":"IF(BİLGİ!B6=\"\",\"\",BİLGİ!B6)","v":""}]
[18,"2024-03-18","1900-01-02",null,null,null,null,null,null,null,{"$f":"IF(BİLGİ!B12=\"\",38.7,BİLGİ!B8)","v":420}]
[19,"2024-03-19","1900-01-03"]
[20,"2024-03-20","1900-01-04",null,null,null,null,null,null,null,{"$f":"31-COUNTBLANK(F7:F37)","v":3}]
[21,"2024-03-21","1900-01-05",null,null,null,null,null,null,null,"X"]
[22,"2024-03-22","1900-01-06"]
[23,"2024-03-23","1900-01-07"]
[24,"2024-03-24","1900-01-01"]
[25,"2024-03-25","1900-01-02",null,null,"X"]
[26,"2024-03-26","1900-01-03","fwefwe"]
[27,"2024-03-27","1900-01-04"]
[28,"2024-03-28","1900-01-05","weffew",null,"X"]
[29,{"$f":"IF(B34=\"\",\"\",IF(DAY(B34+1)<4,\"\",B34+1))","v":"2024-03-29"},"1900-01-06"]
[30,{"$f":"IF(B35=\"\",\"\",IF(DAY(B35+1)<4,\"\",B35+1))","v":"2024-03-30"},"1900-01-07","weffew",null,"X"]
[{"$f":"IF(B37=\"\",\"\",A36+1)","v":31},{"$f":"IF(B36=\"\",\"\",IF(DAY(B36+1)<4,\"\",B36+1))","v":"2024-03-31"},{"$f":"WEEKDAY(B37)","v":"1900-01-01"},"Ankara ","Hafta Sonu  tatili"]
["Yukarıdaki Çalışmaları Yaptığımı Beyan Ederim"]
[null,null,null,{"$f":"IF(D42=\"\",\"\",\"İncelendi\")","v":""}]
[null,null,null,null,{"$f":"BİLGİ!B14","v":"2024-04-01"}]
[]
[null,null,null,null,{"$f":"UPPER(BİLGİ!B2)","v":""}]
[null,null,null,null,{"$f":"UPPER(BİLGİ!B3)","v":"EĞİTİM MÜFETTİŞİ"}]

{"sheet":"pusula","index":4,"n_rows":24,"n_cols":7,"rows_kept":24,"cut":false,"hidden":true,"merged":[[17,0,17,2],[16,0,16,2],[9,1,9,2],[8,1,8,2],[5,1,5,2],[12,1,12,2],[13,1,13,2],[14,1,14,2],[15,1,15,2],[6,1,6,2],[7,1,7,2],[10,1,10,2],[11,1,11,2],[0,0,0,2],[1,0,1,2],[2,0,2,2],[3,1,3,2],[4,1,4,2]]}
["HARCAMA PUSULASI"]
["Dairesi: Ankara Milli Eğitim Müdürlüğü"]
["SATIN ALINAN MAL VEYA HİZMETİN"]
["Çeşidi","Geçici Görev Yolluğu"]
["Uzaklığı (Gidiş-Geliş Toplam)",44]
["Birim Fiyatı",20]
["Tutarı",{"$f":"B5*B6","v":880}]
["1/3 Kar Payı",{"$f":"ROUND(B7/3,2)","v":293.33}]
["Kalan",{"$f":"B7-B8","v":586.67000000000007}]
["Araçta Gidilen Kişi Sayısı",2]
["Kişi Başı Düşen",{"$f":"ROUND(B9/B10,2)","v":293.33999999999997}]
["Yazıyla",{"$f":"PROPER(tl_yaz(B11))","v":"İkiyüzdoksanüç Lira Otuzdört Kuruş"}]
["Gidilen Aracın Plakası",null,null,null,null,null,{"$f":"IF(B13=\"\",\"………….\",B13)","v":"…………."}]
["Araç Sahibi",null,null,null,null,null,{"$f":"IF(B14=\"\",\"………………...…….\",B14)","v":"………………...……."}]
["Gidilen İlçe",null,null,null,null,null,{"$f":"IF(B15=\"\",\"………………...…….\",B15)","v":"………………...……."}]
["Okul / Kurum",null,null,null,null,null,{"$f":"IF(B16=\"\",\"………………...…….\",B16)","v":"………………...……."}]
[{"$f":"G14&\"'a ait \"&G13&\" plakalı özel otomobil ile \"&G15&\" İlçesi \"&G16&\" gidilerek ilçe merkezine dönüldü. 1/3 oranında kar payı düşüldü, bekleme ücreti tahakkuk ettirilmedi.\"","v":"………………...…….'a ait …………. plakalı özel otomobil ile ………………...……. İlçesi ………………...……. gidilerek ilçe merkezine dönüldü. 1/3 oranında kar payı düşüldü, bekleme ücreti tahakkuk ettirilmedi."}]
["2024-01-04"]
["Malı Satan/Hizmeti Yapan",null,"Malı Alan/Hizmeti Yaptıran"]
["Eğitim  Müfettişi",null,"Eğitim  Müfettişleri"]
[]
[null,null,"Adı Soyadı                                         İmza"]
[null,1]
["İmza",2]

{"sheet":"YOLLUK","index":5,"n_rows":46,"n_cols":16,"rows_kept":46,"cut":false,"hidden":true,"merged":[[40,0,40,13],[39,9,39,12],[39,3,39,6],[3,12,4,12],[3,13,4,13],[5,1,7,1],[5,0,7,0],[5,3,7,3],[6,5,7,5],[0,4,4,11],[6,8,7,8],[3,0,3,3],[4,0,4,3],[0,12,2,12],[0,13,2,13],[0,0,0,3],[1,0,1,3],[2,0,2,3],[5,4,5,5],[5,6,5,7],[5,9,5,12],[5,2,7,2],[6,4,7,4],[44,6,44,10],[43,11,43,13],[41,11,41,13],[44,11,44,13],[41,6,41,9],[43,6,43,10],[5,13,7,13],[6,6,7,6],[6,7,7,7],[6,9,6,11],[6,12,7,12]]}
[{"$f":"\"Adı Soyadı                : \"&PROPER(CALIŞMAÇİZELGESİ!K15)","v":"Adı Soyadı                : "},null,null,null,"   YURTİÇİ/YURTDIŞI GEÇİCİ GÖREV YOLLUĞU BİLDİRİMİ",null,null,null,null,null,null,null,"Dairesi","Milli Eğitim Müdürlüğü",null,"1/3gün"]
[{"$f":"\"T.C. Kimlik No        : \"&CALIŞMAÇİZELGESİ!K14","v":"T.C. Kimlik No        : "},null,null,null,null,null,null,null,null,null,null,null,null,null,null,"2/3gün"]
[{"$f":"\"Unvanı                      : \"&PROPER(CALIŞMAÇİZELGESİ!K16)","v":"Unvanı                      : Eğitim Müfettişi"},null,null,null,null,null,null,null,null,null,null,null,null,null,null,"1gün"]
[{"$f":"\"Aylık D/K  Ek Gös.  : \"&CALIŞMAÇİZELGESİ!K20","v":"Aylık D/K  Ek Gös.  : 1/4 4200"},null,null,null,null,null,null,null,null,null,null,null,"Bütçe Yılı",{"$f":"PROPER(CALIŞMAÇİZELGESİ!M1&\"  -  \"&CALIŞMAÇİZELGESİ!M2)","v":"Mart  -  2024"}]
[{"$f":"\"Gündeliği                  :   Denetim için \"&VALUE(CALIŞMAÇİZELGESİ!K19)&\"TL   Memur İçin \"&VALUE(CALIŞMAÇİZELGESİ!K24)&\"TL\"","v":"Gündeliği                  :   Denetim için 418,5TL   Memur İçin 420TL"}]
["Yolculuk ve Oturma\nTarihleri","A","B","Nereden Nereye Yolculuk Edildiği Veya Nerede Oturduğu","Hareket Saatleri",null,"GÜNDELİKLER",null,"KONAKLAMA","TAŞIT VE ZORUNLU GİDERLER",null,null,null,"Toplam Tutar TL"]
[null,null,null,null,"Gidiş ","Dönüş","Gün Sayısı","Tutarı TL","Yatak Ücreti TL","Çeşidi ve Mevkii",null,null,"Tutar TL"]
[null,null,null,null,null,null,null,null,null,"EGO + Dolmuş","Otobüs","Özel Oto"]
[{"$f":"IF(CALIŞMAÇİZELGESİ!B7=\"\",\"\",CALIŞMAÇİZELGESİ!B7)","v":"2024-03-01"},{"$f":"IF(CALIŞMAÇİZELGESİ!F7=\"\",\"T\",CALIŞMAÇİZELGESİ!F7)","v":"T"},{"$f":"IF(CALIŞMAÇİZELGESİ!G7=\"\",0,IF(CALIŞMAÇİZELGESİ!G7=\"Denetim\",CALIŞMAÇİZELGESİ!$K$19,CALIŞMAÇİZELGESİ!$K$24))","v":0},{"$f":"IF(CALIŞMAÇİZELGESİ!D7=\"\",\"\",CALIŞMAÇİZELGESİ!D7)","v":""},null,null,null,{"$f":"IF(G9=\"\",\"\",IF(G9=\"1/3gün\",C9/3,IF(G9=\"2/3gün\",C9*2/3,C9)))","v":""},null,null,null,null,{"$f":"IF(SUM(J9:L9)=0,\"\",SUM(J9:L9))","v":""},{"$f":"IF(SUM(H9,M9,I9)=0,\"\",SUM(H9,M9,I9))","v":""}]
[{"$f":"IF(CALIŞMAÇİZELGESİ!B8=\"\",\"\",CALIŞMAÇİZELGESİ!B8)","v":"2024-03-02"},{"$f":"IF(CALIŞMAÇİZELGESİ!F8=\"\",\"T\",CALIŞMAÇİZELGESİ!F8)","v":"T"},{"$f":"IF(CALIŞMAÇİZELGESİ!G8=\"\",0,IF(CALIŞMAÇİZELGESİ!G8=\"Denetim\",CALIŞMAÇİZELGESİ!$K$19,CALIŞMAÇİZELGESİ!$K$24))","v":0},{"$f":"IF(CALIŞMAÇİZELGESİ!D8=\"\",\"\",CALIŞMAÇİZELGESİ!D8)","v":""},null,null,null,{"$f":"IF(G10=\"\",\"\",IF(G10=\"1/3gün\",C10/3,IF(G10=\"2/3gün\",C10*2/3,C10)))","v":""},null,null,null,null,{"$f":"IF(SUM(J10:L10)=0,\"\",SUM(J10:L10))","v":""},{"$f":"IF(SUM(H10,M10,I10)=0,\"\",SUM(H10,M10,I10))","v":""}]
[{"$f":"IF(CALIŞMAÇİZELGESİ!B9=\"\",\"\",CALIŞMAÇİZELGESİ!B9)","v":"2024-03-03"},{"$f":"IF(CALIŞMAÇİZELGESİ!F9=\"\",\"T\",CALIŞMAÇİZELGESİ!F9)","v":"T"},{"$f":"IF(CALIŞMAÇİZELGESİ!G9=\"\",0,IF(CALIŞMAÇİZELGESİ!G9=\"Denetim\",CALIŞMAÇİZELGESİ!$K$19,CALIŞMAÇİZELGESİ!$K$24))","v":0},{"$f":"IF(CALIŞMAÇİZELGESİ!D9=\"\",\"\",CALIŞMAÇİZELGESİ!D9)","v":""}]
[{"$f":"IF(CALIŞMAÇİZELGESİ!B10=\"\",\"\",CALIŞMAÇİZELGESİ!B10)","v":"2024-03-04"},{"$f":"IF(CALIŞMAÇİZELGESİ!F10=\"\",\"T\",CALIŞMAÇİZELGESİ!F10)","v":"T"},{"$f":"IF(CALIŞMAÇİZELGESİ!G10=\"\",0,IF(CALIŞMAÇİZELGESİ!G10=\"Denetim\",CALIŞMAÇİZELGESİ!$K$19,CALIŞMAÇİZELGESİ!$K$24))","v":0},{"$f":"IF(CALIŞMAÇİZELGESİ!D10=\"\",\"\",CALIŞMAÇİZELGESİ!D10)","v":""}]
[{"$f":"IF(CALIŞMAÇİZELGESİ!B11=\"\",\"\",CALIŞMAÇİZELGESİ!B11)","v":"2024-03-05"},{"$f":"IF(CALIŞMAÇİZELGESİ!F11=\"\",\"T\",CALIŞMAÇİZELGESİ!F11)","v":"T"},{"$f":"IF(CALIŞMAÇİZELGESİ!G11=\"\",0,IF(CALIŞMAÇİZELGESİ!G11=\"Denetim\",CALIŞMAÇİZELGESİ!$K$19,CALIŞMAÇİZELGESİ!$K$24))","v":0},{"$f":"IF(CALIŞMAÇİZELGESİ!D11=\"\",\"\",CALIŞMAÇİZELGESİ!D11)","v":""}]
[{"$f":"IF(CALIŞMAÇİZELGESİ!B12=\"\",\"\",CALIŞMAÇİZELGESİ!B12)","v":"2024-03-06"},{"$f":"IF(CALIŞMAÇİZELGESİ!F12=\"\",\"T\",CALIŞMAÇİZELGESİ!F12)","v":"T"},{"$f":"IF(CALIŞMAÇİZELGESİ!G12=\"\",0,IF(CALIŞMAÇİZELGESİ!G12=\"Denetim\",CALIŞMAÇİZELGESİ!$K$19,CALIŞMAÇİZELGESİ!$K$24))","v":0},{"$f":"IF(CALIŞMAÇİZELGESİ!D12=\"\",\"\",CALIŞMAÇİZELGESİ!D12)","v":""},null,null,null,"",null,null,null,null,"",""]
[{"$f":"IF(CALIŞMAÇİZELGESİ!B13=\"\",\"\",CALIŞMAÇİZELGESİ!B13)","v":"2024-03-07"},{"$f":"IF(CALIŞMAÇİZELGESİ!F13=\"\",\"T\",CALIŞMAÇİZELGESİ!F13)","v":"T"},{"$f":"IF(CALIŞMAÇİZELGESİ!G13=\"\",0,IF(CALIŞMAÇİZELGESİ!G13=\"Denetim\",CALIŞMAÇİZELGESİ!$K$19,CALIŞMAÇİZELGESİ!$K$24))","v":0},{"$f":"IF(CALIŞMAÇİZELGESİ!D13=\"\",\"\",CALIŞMAÇİZELGESİ!D13)","v":""},null,null,null,"",null,null,null,null,"",""]
[{"$f":"IF(CALIŞMAÇİZELGESİ!B14=\"\",\"\",CALIŞMAÇİZELGESİ!B14)","v":"2024-03-08"},{"$f":"IF(CALIŞMAÇİZELGESİ!F14=\"\",\"T\",CALIŞMAÇİZELGESİ!F14)","v":"T"},{"$f":"IF(CALIŞMAÇİZELGESİ!G14=\"\",0,IF(CALIŞMAÇİZELGESİ!G14=\"Denetim\",CALIŞMAÇİZELGESİ!$K$19,CALIŞMAÇİZELGESİ!$K$24))","v":0},{"$f":"IF(CALIŞMAÇİZELGESİ!D14=\"\",\"\",CALIŞMAÇİZELGESİ!D14)","v":""}]
[{"$f":"IF(CALIŞMAÇİZELGESİ!B15=\"\",\"\",CALIŞMAÇİZELGESİ!B15)","v":"2024-03-09"},{"$f":"IF(CALIŞMAÇİZELGESİ!F15=\"\",\"T\",CALIŞMAÇİZELGESİ!F15)","v":"T"},{"$f":"IF(CALIŞMAÇİZELGESİ!G15=\"\",0,IF(CALIŞMAÇİZELGESİ!G15=\"Denetim\",CALIŞMAÇİZELGESİ!$K$19,CALIŞMAÇİZELGESİ!$K$24))","v":0},{"$f":"IF(CALIŞMAÇİZELGESİ!D15=\"\",\"\",CALIŞMAÇİZELGESİ!D15)","v":""}]
[{"$f":"IF(CALIŞMAÇİZELGESİ!B16=\"\",\"\",CALIŞMAÇİZELGESİ!B16)","v":"2024-03-10"},{"$f":"IF(CALIŞMAÇİZELGESİ!F16=\"\",\"T\",CALIŞMAÇİZELGESİ!F16)","v":"T"},{"$f":"IF(CALIŞMAÇİZELGESİ!G16=\"\",0,IF(CALIŞMAÇİZELGESİ!G16=\"Denetim\",CALIŞMAÇİZELGESİ!$K$19,CALIŞMAÇİZELGESİ!$K$24))","v":0},{"$f":"IF(CALIŞMAÇİZELGESİ!D16=\"\",\"\",CALIŞMAÇİZELGESİ!D16)","v":""}]
[{"$f":"IF(CALIŞMAÇİZELGESİ!B17=\"\",\"\",CALIŞMAÇİZELGESİ!B17)","v":"2024-03-11"},{"$f":"IF(CALIŞMAÇİZELGESİ!F17=\"\",\"T\",CALIŞMAÇİZELGESİ!F17)","v":"T"},{"$f":"IF(CALIŞMAÇİZELGESİ!G17=\"\",0,IF(CALIŞMAÇİZELGESİ!G17=\"Denetim\",CALIŞMAÇİZELGESİ!$K$19,CALIŞMAÇİZELGESİ!$K$24))","v":0},{"$f":"IF(CALIŞMAÇİZELGESİ!D17=\"\",\"\",CALIŞMAÇİZELGESİ!D17)","v":""}]
[{"$f":"IF(CALIŞMAÇİZELGESİ!B18=\"\",\"\",CALIŞMAÇİZELGESİ!B18)","v":"2024-03-12"},{"$f":"IF(CALIŞMAÇİZELGESİ!F18=\"\",\"T\",CALIŞMAÇİZELGESİ!F18)","v":"T"},{"$f":"IF(CALIŞMAÇİZELGESİ!G18=\"\",0,IF(CALIŞMAÇİZELGESİ!G18=\"Denetim\",CALIŞMAÇİZELGESİ!$K$19,CALIŞMAÇİZELGESİ!$K$24))","v":0},{"$f":"IF(CALIŞMAÇİZELGESİ!D18=\"\",\"\",CALIŞMAÇİZELGESİ!D18)","v":""}]
[{"$f":"IF(CALIŞMAÇİZELGESİ!B19=\"\",\"\",CALIŞMAÇİZELGESİ!B19)","v":"2024-03-13"},{"$f":"IF(CALIŞMAÇİZELGESİ!F19=\"\",\"T\",CALIŞMAÇİZELGESİ!F19)","v":"T"},{"$f":"IF(CALIŞMAÇİZELGESİ!G19=\"\",0,IF(CALIŞMAÇİZELGESİ!G19=\"Denetim\",CALIŞMAÇİZELGESİ!$K$19,CALIŞMAÇİZELGESİ!$K$24))","v":0},{"$f":"IF(CALIŞMAÇİZELGESİ!D19=\"\",\"\",CALIŞMAÇİZELGESİ!D19)","v":""},null,null,null,"",null,null,null,null,"",""]
[{"$f":"IF(CALIŞMAÇİZELGESİ!B20=\"\",\"\",CALIŞMAÇİZELGESİ!B20)","v":"2024-03-14"},{"$f":"IF(CALIŞMAÇİZELGESİ!F20=\"\",\"T\",CALIŞMAÇİZELGESİ!F20)","v":"T"},{"$f":"IF(CALIŞMAÇİZELGESİ!G20=\"\",0,IF(CALIŞMAÇİZELGESİ!G20=\"Denetim\",CALIŞMAÇİZELGESİ!$K$19,CALIŞMAÇİZELGESİ!$K$24))","v":0},{"$f":"IF(CALIŞMAÇİZELGESİ!D20=\"\",\"\",CALIŞMAÇİZELGESİ!D20)","v":""},null,null,null,"",null,null,null,null,"",""]
[{"$f":"IF(CALIŞMAÇİZELGESİ!B21=\"\",\"\",CALIŞMAÇİZELGESİ!B21)","v":"2024-03-15"},{"$f":"IF(CALIŞMAÇİZELGESİ!F21=\"\",\"T\",CALIŞMAÇİZELGESİ!F21)","v":"T"},{"$f":"IF(CALIŞMAÇİZELGESİ!G21=\"\",0,IF(CALIŞMAÇİZELGESİ!G21=\"Denetim\",CALIŞMAÇİZELGESİ!$K$19,CALIŞMAÇİZELGESİ!$K$24))","v":0},{"$f":"IF(CALIŞMAÇİZELGESİ!D21=\"\",\"\",CALIŞMAÇİZELGESİ!D21)","v":""},null,null,null,"",null,null,null,null,"",""]
[{"$f":"IF(CALIŞMAÇİZELGESİ!B22=\"\",\"\",CALIŞMAÇİZELGESİ!B22)","v":"2024-03-16"},{"$f":"IF(CALIŞMAÇİZELGESİ!F22=\"\",\"T\",CALIŞMAÇİZELGESİ!F22)","v":"T"},{"$f":"IF(CALIŞMAÇİZELGESİ!G22=\"\",0,IF(CALIŞMAÇİZELGESİ!G22=\"Denetim\",CALIŞMAÇİZELGESİ!$K$19,CALIŞMAÇİZELGESİ!$K$24))","v":0},{"$f":"IF(CALIŞMAÇİZELGESİ!D22=\"\",\"\",CALIŞMAÇİZELGESİ!D22)","v":""}]
[{"$f":"IF(CALIŞMAÇİZELGESİ!B23=\"\",\"\",CALIŞMAÇİZELGESİ!B23)","v":"2024-03-17"},{"$f":"IF(CALIŞMAÇİZELGESİ!F23=\"\",\"T\",CALIŞMAÇİZELGESİ!F23)","v":"T"},{"$f":"IF(CALIŞMAÇİZELGESİ!G23=\"\",0,IF(CALIŞMAÇİZELGESİ!G23=\"Denetim\",CALIŞMAÇİZELGESİ!$K$19,CALIŞMAÇİZELGESİ!$K$24))","v":0},{"$f":"IF(CALIŞMAÇİZELGESİ!D23=\"\",\"\",CALIŞMAÇİZELGESİ!D23)","v":""}]
[{"$f":"IF(CALIŞMAÇİZELGESİ!B24=\"\",\"\",CALIŞMAÇİZELGESİ!B24)","v":"2024-03-18"},{"$f":"IF(CALIŞMAÇİZELGESİ!F24=\"\",\"T\",CALIŞMAÇİZELGESİ!F24)","v":"T"},{"$f":"IF(CALIŞMAÇİZELGESİ!G24=\"\",0,IF(CALIŞMAÇİZELGESİ!G24=\"Denetim\",CALIŞMAÇİZELGESİ!$K$19,CALIŞMAÇİZELGESİ!$K$24))","v":0},{"$f":"IF(CALIŞMAÇİZELGESİ!D24=\"\",\"\",CALIŞMAÇİZELGESİ!D24)","v":""},null,null,null,"",null,null,null,null,"",""]
[{"$f":"IF(CALIŞMAÇİZELGESİ!B25=\"\",\"\",CALIŞMAÇİZELGESİ!B25)","v":"2024-03-19"},{"$f":"IF(CALIŞMAÇİZELGESİ!F25=\"\",\"T\",CALIŞMAÇİZELGESİ!F25)","v":"T"},{"$f":"IF(CALIŞMAÇİZELGESİ!G25=\"\",0,IF(CALIŞMAÇİZELGESİ!G25=\"Denetim\",CALIŞMAÇİZELGESİ!$K$19,CALIŞMAÇİZELGESİ!$K$24))","v":0},{"$f":"IF(CALIŞMAÇİZELGESİ!D25=\"\",\"\",CALIŞMAÇİZELGESİ!D25)","v":""},null,null,null,"",null,null,null,null,"",""]
[{"$f":"IF(CALIŞMAÇİZELGESİ!B26=\"\",\"\",CALIŞMAÇİZELGESİ!B26)","v":"2024-03-20"},{"$f":"IF(CALIŞMAÇİZELGESİ!F26=\"\",\"T\",CALIŞMAÇİZELGESİ!F26)","v":"T"},{"$f":"IF(CALIŞMAÇİZELGESİ!G26=\"\",0,IF(CALIŞMAÇİZELGESİ!G26=\"Denetim\",CALIŞMAÇİZELGESİ!$K$19,CALIŞMAÇİZELGESİ!$K$24))","v":0},{"$f":"IF(CALIŞMAÇİZELGESİ!D26=\"\",\"\",CALIŞMAÇİZELGESİ!D26)","v":""},null,null,null,"",null,null,null,null,"",""]
[{"$f":"IF(CALIŞMAÇİZELGESİ!B27=\"\",\"\",CALIŞMAÇİZELGESİ!B27)","v":"2024-03-21"},{"$f":"IF(CALIŞMAÇİZELGESİ!F27=\"\",\"T\",CALIŞMAÇİZELGESİ!F27)","v":"T"},{"$f":"IF(CALIŞMAÇİZELGESİ!G27=\"\",0,IF(CALIŞMAÇİZELGESİ!G27=\"Denetim\",CALIŞMAÇİZELGESİ!$K$19,CALIŞMAÇİZELGESİ!$K$24))","v":0},{"$f":"IF(CALIŞMAÇİZELGESİ!D27=\"\",\"\",CALIŞMAÇİZELGESİ!D27)","v":""},null,null,null,"",null,null,null,null,"",""]
[{"$f":"IF(CALIŞMAÇİZELGESİ!B28=\"\",\"\",CALIŞMAÇİZELGESİ!B28)","v":"2024-03-22"},{"$f":"IF(CALIŞMAÇİZELGESİ!F28=\"\",\"T\",CALIŞMAÇİZELGESİ!F28)","v":"T"},{"$f":"IF(CALIŞMAÇİZELGESİ!G28=\"\",0,IF(CALIŞMAÇİZELGESİ!G28=\"Denetim\",CALIŞMAÇİZELGESİ!$K$19,CALIŞMAÇİZELGESİ!$K$24))","v":0},{"$f":"IF(CALIŞMAÇİZELGESİ!D28=\"\",\"\",CALIŞMAÇİZELGESİ!D28)","v":""},null,null,null,"",null,null,null,null,"",""]
[{"$f":"IF(CALIŞMAÇİZELGESİ!B29=\"\",\"\",CALIŞMAÇİZELGESİ!B29)","v":"2024-03-23"},{"$f":"IF(CALIŞMAÇİZELGESİ!F29=\"\",\"T\",CALIŞMAÇİZELGESİ!F29)","v":"T"},{"$f":"IF(CALIŞMAÇİZELGESİ!G29=\"\",0,IF(CALIŞMAÇİZELGESİ!G29=\"Denetim\",CALIŞMAÇİZELGESİ!$K$19,CALIŞMAÇİZELGESİ!$K$24))","v":0},{"$f":"IF(CALIŞMAÇİZELGESİ!D29=\"\",\"\",CALIŞMAÇİZELGESİ!D29)","v":""},null,null,null,"",null,null,null,null,"",""]
[{"$f":"IF(CALIŞMAÇİZELGESİ!B30=\"\",\"\",CALIŞMAÇİZELGESİ!B30)","v":"2024-03-24"},{"$f":"IF(CALIŞMAÇİZELGESİ!F30=\"\",\"T\",CALIŞMAÇİZELGESİ!F30)","v":"T"},{"$f":"IF(CALIŞMAÇİZELGESİ!G30=\"\",0,IF(CALIŞMAÇİZELGESİ!G30=\"Denetim\",CALIŞMAÇİZELGESİ!$K$19,CALIŞMAÇİZELGESİ!$K$24))","v":0},{"$f":"IF(CALIŞMAÇİZELGESİ!D30=\"\",\"\",CALIŞMAÇİZELGESİ!D30)","v":""},null,null,null,"",null,null,null,null,"",""]
[{"$f":"IF(CALIŞMAÇİZELGESİ!B31=\"\",\"\",CALIŞMAÇİZELGESİ!B31)","v":"2024-03-25"},{"$f":"IF(CALIŞMAÇİZELGESİ!F31=\"\",\"T\",CALIŞMAÇİZELGESİ!F31)","v":"X"},{"$f":"IF(CALIŞMAÇİZELGESİ!G31=\"\",0,IF(CALIŞMAÇİZELGESİ!G31=\"Denetim\",CALIŞMAÇİZELGESİ!$K$19,CALIŞMAÇİZELGESİ!$K$24))","v":0},{"$f":"IF(CALIŞMAÇİZELGESİ!D31=\"\",\"\",CALIŞMAÇİZELGESİ!D31)","v":""},null,null,null,"",null,null,null,null,"",""]
[{"$f":"IF(CALIŞMAÇİZELGESİ!B32=\"\",\"\",CALIŞMAÇİZELGESİ!B32)","v":"2024-03-26"},{"$f":"IF(CALIŞMAÇİZELGESİ!F32=\"\",\"T\",CALIŞMAÇİZELGESİ!F32)","v":"T"},{"$f":"IF(CALIŞMAÇİZELGESİ!G32=\"\",0,IF(CALIŞMAÇİZELGESİ!G32=\"Denetim\",CALIŞMAÇİZELGESİ!$K$19,CALIŞMAÇİZELGESİ!$K$24))","v":0},{"$f":"IF(CALIŞMAÇİZELGESİ!D32=\"\",\"\",CALIŞMAÇİZELGESİ!D32)","v":"fwefwe"},null,null,null,"",null,null,null,null,"",""]
[{"$f":"IF(CALIŞMAÇİZELGESİ!B33=\"\",\"\",CALIŞMAÇİZELGESİ!B33)","v":"2024-03-27"},{"$f":"IF(CALIŞMAÇİZELGESİ!F33=\"\",\"T\",CALIŞMAÇİZELGESİ!F33)","v":"T"},{"$f":"IF(CALIŞMAÇİZELGESİ!G33=\"\",0,IF(CALIŞMAÇİZELGESİ!G33=\"Denetim\",CALIŞMAÇİZELGESİ!$K$19,CALIŞMAÇİZELGESİ!$K$24))","v":0},{"$f":"IF(CALIŞMAÇİZELGESİ!D33=\"\",\"\",CALIŞMAÇİZELGESİ!D33)","v":""},null,null,null,"",null,null,null,null,"",""]
[{"$f":"IF(CALIŞMAÇİZELGESİ!B34=\"\",\"\",CALIŞMAÇİZELGESİ!B34)","v":"2024-03-28"},{"$f":"IF(CALIŞMAÇİZELGESİ!F34=\"\",\"T\",CALIŞMAÇİZELGESİ!F34)","v":"X"},{"$f":"IF(CALIŞMAÇİZELGESİ!G34=\"\",0,IF(CALIŞMAÇİZELGESİ!G34=\"Denetim\",CALIŞMAÇİZELGESİ!$K$19,CALIŞMAÇİZELGESİ!$K$24))","v":0},null,null,null,null,"",null,null,null,null,"",""]
[{"$f":"IF(CALIŞMAÇİZELGESİ!B35=\"\",\"\",CALIŞMAÇİZELGESİ!B35)","v":"2024-03-29"},{"$f":"IF(CALIŞMAÇİZELGESİ!B35=\"\",\"T\",IF(CALIŞMAÇİZELGESİ!F35=\"\",\"T\",CALIŞMAÇİZELGESİ!F35))","v":"T"},{"$f":"IF(CALIŞMAÇİZELGESİ!G35=\"\",0,IF(CALIŞMAÇİZELGESİ!G35=\"Denetim\",CALIŞMAÇİZELGESİ!$K$19,CALIŞMAÇİZELGESİ!$K$24))","v":0},{"$f":"IF(CALIŞMAÇİZELGESİ!D35=\"\",\"\",CALIŞMAÇİZELGESİ!D35)","v":""},null,null,null,"",null,null,null,null,"",""]
[{"$f":"IF(CALIŞMAÇİZELGESİ!B36=\"\",\"\",CALIŞMAÇİZELGESİ!B36)","v":"2024-03-30"},{"$f":"IF(CALIŞMAÇİZELGESİ!B36=\"\",\"T\",IF(CALIŞMAÇİZELGESİ!F36=\"\",\"T\",CALIŞMAÇİZELGESİ!F36))","v":"X"},{"$f":"IF(CALIŞMAÇİZELGESİ!G36=\"\",0,IF(CALIŞMAÇİZELGESİ!G36=\"Denetim\",CALIŞMAÇİZELGESİ!$K$19,CALIŞMAÇİZELGESİ!$K$24))","v":0},null,null,null,null,"",null,null,null,null,"",""]
[{"$f":"IF(CALIŞMAÇİZELGESİ!B37=\"\",\"\",CALIŞMAÇİZELGESİ!B37)","v":"2024-03-31"},{"$f":"IF(CALIŞMAÇİZELGESİ!B37=\"\",\"T\",IF(CALIŞMAÇİZELGESİ!F37=\"\",\"T\",CALIŞMAÇİZELGESİ!F37))","v":"T"},{"$f":"IF(CALIŞMAÇİZELGESİ!G37=\"\",0,IF(CALIŞMAÇİZELGESİ!G37=\"Denetim\",CALIŞMAÇİZELGESİ!$K$19,CALIŞMAÇİZELGESİ!$K$24))","v":0},{"$f":"IF(CALIŞMAÇİZELGESİ!D37=\"\",\"\",CALIŞMAÇİZELGESİ!D37)","v":"Ankara "},null,null,null,"",null,null,null,null,"",""]
[null,null,null,"Genel Toplam :",null,null,null,{"$f":"IF(SUM(H9:H39)=0,\"\",SUM(H9:H39))","v":""},{"$f":"IF(SUM(I9:I39)=0,\"\",SUM(I9:I39))","v":""},{"$f":"IF(SUM(M9:M39)=0,\"\",SUM(M9:M39))","v":""},null,null,null,{"$f":"IF(SUM(N9:N39)=0,\"\",SUM(N9:N39))","v":""}]
[{"$f":"\"     Yukarıda belirtilen tarih-saatler ve belirtilen yerler arasında yapmış olduğum teftiş,denetim ve incelemeyle ilgili\"&\" \"&IF(N40=\"\",\"-----\",(PROPER(tl_yaz(N40)))&\" \"&\"harcamaya ait bildirimdir.\")","v":"     Yukarıda belirtilen tarih-saatler ve belirtilen yerler arasında yapmış olduğum teftiş,denetim ve incelemeyle ilgili -----"}]
[null,null,null,null,"Birim Yetkilisi :(1)",null,"…/…/2024",null,null,null,null,{"$f":"BİLGİ!B14","v":"2024-04-01"}]
[]
[null,null,null,null,"Adı Soyadı     :",null,{"$f":"BİLGİ!B5","v":"Leyla SERBES"},null,null,null,null,{"$f":"UPPER(CALIŞMAÇİZELGESİ!K15)","v":""}]
[null,null,null,null,"Ünvanı            :",null,"Başkan a.\nEğitim Müfettişleri Başkan Yardımcısı",null,null,null,null,"Eğitim Müfettişi"]
[null,null,null,null,"İmza-Mühür    :"]

{"sheet":"AVANS","index":6,"n_rows":41,"n_cols":8,"rows_kept":41,"cut":false,"hidden":true,"merged":[[33,0,35,7],[36,0,39,7],[40,0,43,7],[14,3,14,4],[29,0,30,7],[31,0,31,7],[18,3,18,7],[19,3,19,7],[17,3,17,7],[16,3,16,7],[32,0,32,7],[21,0,24,7],[10,0,10,1],[10,2,10,7],[11,0,11,1],[11,2,11,7],[12,0,12,1],[12,2,12,7],[5,1,5,7],[6,0,7,0],[9,0,9,1],[9,5,9,7],[6,1,7,7],[8,0,8,7],[4,1,4,7],[0,1,0,7],[1,1,1,7],[3,1,3,7],[2,2,2,4],[2,5,2,7]]}
["Adı-Soyadı",{"$f":"PROPER(CALIŞMAÇİZELGESİ!K15)","v":""}]
["Görev Ünvanı",{"$f":"PROPER(CALIŞMAÇİZELGESİ!K16)","v":"Eğitim Müfettişi"}]
["Personel No (1)-Vergi No",null,"T.C. Kimlik No:",null,null,{"$f":"CALIŞMAÇİZELGESİ!K14","v":""}]
["Dairesi Adı","Ankara Milli  Eğitim Müdürlüğü"]
["Birimi Adı","Maarif Müfettişleri Başkanlığı"]
["Saymanlığın Adı (2)","Ankara Defterdarlığı Muhasebe Müdürlüğü"]
["Banka Hesap No",{"$f":"PROPER(CALIŞMAÇİZELGESİ!K21)&\"  /  \"&CALIŞMAÇİZELGESİ!K22","v":"Halkbank Ankara Bahçelievler Şubesi  /  "}]
[]
[{"$f":"PROPER(\"YOLLUK VE DİĞER GİDERLER KARŞILIĞI TALEP EDİLEN TUTAR\")","v":"Yolluk Ve Diğer Giderler Karşılığı Talep Edilen Tutar"}]
["Yevmiye tutarı (1 günlük yevmiye miktarı X gün sayısı)",null,null,"*"]
["Muhtemel yol, konaklama ve diğer masraflar karşılığı"]
["Talep Edilen Toplam Tutar",null,600]
["Ödemenin Yapılacağı Saymanlık (3)",null,"……………………... Mal Müdürlüğü"]
[]
["                Yolluk ve diğer giderler karşılığı olarak toplam",null,null,{"$f":"C12","v":600},null,"TL",{"$f":"tl_yaz(C12)","v":"AltıYüz Lira"},"TL"]
[" tarafıma ödenmesi hususunda gereğini arz/rica ederim. "]
[null,null,null,"…/…/20…"]
[]
[null,null,null,{"$f":"B1","v":""}]
[null,null,null,{"$f":"B2","v":"Eğitim Müfettişi"}]
[]
[{"$f":"tl_yaz(C12)&\" 'nın İlgilinin yukarıda belirtilen maaş banka hesabına aktarılması uygundur. (4)\"","v":"AltıYüz Lira 'nın İlgilinin yukarıda belirtilen maaş banka hesabına aktarılması uygundur. (4)"}]
[]
[]
[]
[null,null,"..................../................/200......."]
[null,null,"..........Kurul/Birim/Grup Başkan veya Yardımcısı"]
[null,null,"Adı-Soyadı"]
[null,null,"İmza"]
["1.       Denetim elemanının özlük hakları ödemeleri yönünden bağlı bulunduğu saymanlıkça say2000i sisteminden alınan personel numarası yazılacaktır."]
[]
["2.       Denetim elemanının özlük hakları ödemeleri yönünden bağlı olduğu saymanlığın adı ve kodu yazılacaktır."]
["3.       Ödeme yapılmak üzere formun verildiği veya gönderildiği saymanlık adı yazılacaktır."]
["4.       Onay işlemi; söz konusu ödemelerin, denetim elemanı saymanlığa gitmeksizin (merkezde, grup başkanlıklarının bulunduğu yerlerde veya bölge merkezlerinde) maaşlarının ödendiği banka hesaplarına aktarılmasının istenmesi halinde aranacaktır."]
[]
[]
["Açıklama: Maliye Bakanlığı Muhasebat Genel Müdürlüğünün “14 Sıra Nolu Genel Tebliğinde Değişiklik Yapılmasına İlişkin Tebliğ”in I-A-3 maddesine göre denetim elemanınca talep edilecek tutar, görev süresiyle sınırlı olmak ve içinde bulunulan ayın kalan gün "]
[]
[]
[]
["Örneğin; 20 gün görevlendirilen ve ayın 25’inde para çekmek üzere Saymanlığa müracaat eden denetim elemanınca, içinde bulunulan ayın kalan süresine göre 5 veya 6 gün gündelik ve bu günler içinde yapılması muhtemel yol, konaklama ve P.T.T masrafları gibi z"]